[Event "WYCC 2018 G14"]
[Site "Halkidiki"]
[Date "2018.10.24"]
[Round "6"]
[White "Sim, Jia Ru"]
[Black "Tien, Sophie"]
[Result "1/2-1/2"]
[ECO "C54"]
[WhiteElo "1979"]
[BlackElo "1648"]
[Annotator "NA"]
[PlyCount "101"]
[EventDate "2018.10.20"]
[EventType "swiss"]
[EventCountry "GRE"]
[SourceTitle "playchess.com"]
[Source "ChessBase"]
[SourceQuality "1"]
[TimeControl "40/5400+30:1800+30"]

1. e4 {[%emt 0:00:00]} e5 {[%emt 0:00:00]} 2. Nf3 {[%emt 0:00:00]} Nc6 {[%emt 0:00:00]} 3. Bc4 {[%emt 0:00:00]} Bc5 {[%emt 0:00:09]} 4. c3 {[%emt 0:00:00]} Nf6 {[%emt 0:00:17]} 5. d4 {[%emt 0:00:09]} exd4 {[%emt 0:00:17]} 6. e5 {[%emt 0:00:11]} d5 {[%emt 0:00:26]} 7. Bb5 {[%emt 0:00:13]} Ne4 {[%emt 0:00:49]} 8. cxd4 {[%emt 0:00:13]} Bb6 {[%emt 0:00:32]} 9. Be3 {[%emt 0:02:18]} O-O {[%emt 0:02:13]} 10. h3 {[%emt 0:02:09]} f5 {[%emt 0:04:18]} 11. exf6 {[%emt 0:02:23]} Qxf6 {[%emt 0:01:34]} 12. Bxc6 {[%emt 0:06:42]} bxc6 {[%emt 0:01:29]} 13. a3 {[%emt 0:07:59]} a5 {[%emt 0:05:19]} 14. Nbd2 {[%emt 0:08:34]} Nxd2 {[%emt 0:09:13]} 15. Qxd2 {[%emt 0:01:55]} Ba6 {[%emt 0:01:16]} 16. Ne5 {[%emt 0:02:31]} Rfe8 {[%emt 0:02:07]} 17. Rc1 {[%emt 0:04:55]} Re6 {[%emt 0:02:10]} 18. a4 {[%emt 0:04:37]} Rae8 {[%emt 0:06:08]} 19. Rc2 {[%emt 0:05:47]} c5 {[%emt 0:07:07]} 20. dxc5 {[%emt 0:24:02]} Qxe5 {[%emt 0:04:48]} 21. Kd1 {[%emt 0:03:12]} Qe4 {[%emt 0:13:02]} 22. cxb6 {[%emt 0:04:28]} Qxg2 {[%emt 0:08:02]} 23. Re1 {[%emt 0:00:01]} cxb6 {[%emt 0:00:49]} 24. Qd4 {[%emt 0:03:34]} Qe4 {[%emt 0:06:57]} 25. Rg1 {[%emt 0:02:40]} Qxd4+ {[%emt 0:05:19]} 26. Bxd4 {[%emt 0:00:08]} g6 {[%emt 0:00:12]} 27. Rc7 {[%emt 0:02:54]} Re4 {[%emt 0:02:28]} 28. Bf6 {[%emt 0:03:48]} R8e6 {[%emt 0:02:41]} 29. Bc3 {[%emt 0:03:10]} Rxa4 {[%emt 0:03:24]} 30. b3 {[%emt 0:01:23]} Rh4 {[%emt 0:01:30]} 31. Rg3 {[%emt 0:02:54]} d4 {[%emt 0:00:49]} 32. Bd2 {[%emt 0:00:10]} Rh5 {[%emt 0:02:39]} 33. Rd7 {[%emt 0:01:15]} Be2+ {[%emt 0:02:57]} 34. Kc1 {[%emt 0:00:13]} Rc6+ {[%emt 0:01:27]} 35. Kb1 {[%emt 0:00:15]} Re6 {[%emt 0:01:49]} 36. Rxd4 {[%emt 0:00:35]} Ree5 {[%emt 0:01:30]} 37. Rd8+ {[%emt 0:00:47]} Kf7 {[%emt 0:00:15]} 38. f4 {[%emt 0:00:35]} Rd5 {[%emt 0:00:24]} 39. Rxd5 {[%emt 0:00:12]} Rxd5 {[%emt 0:00:05]} 40. Kc2 {[%emt 0:00:00]} Bb5 {[%emt 0:00:00]} 41. Rc3 {[%emt 0:02:04]} Bd7 {[%emt 0:04:40]} 42. Rc7 {[%emt 0:02:09]} Ke6 {[%emt 0:01:34]} 43. Rb7 {[%emt 0:00:27]} Rd6 {[%emt 0:01:20]} 44. Ra7 {[%emt 0:01:31]} Kd5 {[%emt 0:04:01]} 45. Bc3 {[%emt 0:02:12]} Bxh3 {[%emt 0:01:43]} 46. Rxh7 {[%emt 0:00:17]} Bf5+ {[%emt 0:00:14]} 47. Kb2 {[%emt 0:00:09]} Rc6 {[%emt 0:03:03]} 48. Rh2 {[%emt 0:00:22]} Kc5 {[%emt 0:00:54]} 49. Rd2 {[%emt 0:01:32]} Kb5 {[%emt 0:00:38]} 50. Rd5+ {[%emt 0:00:08]} Ka6 {[%emt 0:00:15]} 51. Rd8 {[%emt 0:00:12]} 1/2-1/2

[Event "WYCC 2018 G14"]
[Site "Halkidiki"]
[Date "2018.10.24"]
[Round "6"]
[White "Hrebenshchykova, Yelyzaveta"]
[Black "Zhou, Iris"]
[Result "0-1"]
[ECO "B62"]
[WhiteElo "1968"]
[BlackElo "1779"]
[Annotator "NA"]
[PlyCount "104"]
[EventDate "2018.10.20"]
[EventType "swiss"]
[EventCountry "GRE"]
[SourceTitle "playchess.com"]
[Source "ChessBase"]
[SourceQuality "1"]
[TimeControl "40/5400+30:1800+30"]

1. e4 {[%emt 0:00:00]} c5 {[%emt 0:00:00]} 2. Nf3 {[%emt 0:00:00]} d6 {[%emt 0:00:00]} 3. d4 {[%emt 0:00:00]} cxd4 {[%emt 0:00:00]} 4. Nxd4 {[%emt 0:00:00]} Nf6 {[%emt 0:00:00]} 5. Nc3 {[%emt 0:00:02]} Nc6 {[%emt 0:00:00]} 6. Bg5 {[%emt 0:00:10]} e6 {[%emt 0:00:00]} 7. Bb5 {[%emt 0:00:06]} Bd7 {[%emt 0:03:56]} 8. Bxc6 {[%emt 0:00:09]} bxc6 {[%emt 0:01:06]} 9. Qf3 {[%emt 0:00:26]} e5 {[%emt 0:08:50]} 10. Nf5 {[%emt 0:01:20]} Bxf5 {[%emt 0:00:52] LiveBook: 21 Games B62: Sicilian: Richter-Rauzer: 6...e6: Unusual White 7th moves} 11. Qxf5 {[%emt 0:00:56]} Be7 {[%emt 0:01:43]} 12. O-O {[%emt 0:07:38]} (12. O-O-O O-O 13. Rd3 Rb8 14. Rhd1 g6 15. Bxf6 Bxf6 16. Qf3 Be7 17. Qe2 Qb6 18. b3 {1-0 (31) Haznedaroglu,K (2482)-Guliev,L (2373) Mersin 2016}) 12... h6 {[%emt 0:03:19]} 13. Be3 {[%emt 0:10:25]} O-O $146 {[%emt 0:03:47]} ({Predecessor:} 13... Qb8 14. Rab1 O-O 15. Rfd1 Rd8 16. f4 exf4 17. Qxf4 Qc8 18. h3 {½-½ (29) Tsvetkov,A-Zhukov,V Bulgaria 1999}) 14. Kh1 {[%emt 0:12:09]} Qd7 {[%emt 0:06:16]} 15. Qxd7 {[%emt 0:18:40]} Nxd7 {[%emt 0:00:06]} 16. f4 {[%emt 0:00:08]} Rab8 {[%emt 0:07:10]} 17. Rab1 {[%emt 0:00:52]} a5 {[%emt 0:02:13]} 18. b3 {[%emt 0:03:26]} Bf6 {[%emt 0:05:20]} 19. Na4 {[%emt 0:08:09]} Rb4 {[%emt 0:06:36]} 20. c4 {[%emt 0:00:23]} Bd8 {[%emt 0:05:43]} 21. Rbd1 $11 {[%emt 0:03:06]} Bc7 {[%emt 0:00:48]} 22. Bc1 {[%emt 0:02:55]} exf4 {[%emt 0:08:03]} 23. Ba3 {[%emt 0:00:40]} Rbb8 {[%emt 0:03:50]} 24. Bxd6 {[%emt 0:01:58]} Bxd6 {[%emt 0:00:07]} 25. Rxd6 {[%emt 0:00:04]} Ne5 {[%emt 0:00:28]} 26. Rfd1 {[%emt 0:10:01]} Rfc8 {[%emt 0:06:11]} 27. h3 {[%emt 0:00:55]} Kf8 {[%emt 0:01:41]} 28. Kg1 {[%emt 0:01:35]} Ke7 {[%emt 0:01:52]} 29. Kf2 {[%emt 0:00:24]} Rd8 {[%emt 0:03:01]} 30. c5 {[%emt 0:13:15]} g5 {[%emt 0:03:23]} 31. g3 {[%emt 0:01:48]} f3 {[%emt 0:01:44]} 32. g4 {[%emt 0:00:09]} Rxd6 {[%emt 0:04:38]} 33. cxd6+ {[%emt 0:02:17]} Kd8 {[%emt 0:01:10]} 34. Nc5 {[%emt 0:00:11]} Rb4 {[%emt 0:02:07]} 35. Ke3 {[%emt 0:00:16]} Rb5 {[%emt 0:03:21]} 36. Nd3 {[%emt 0:01:48]} Kd7 {[%emt 0:00:41]} 37. Nf2 {[%emt 0:01:27]} f6 {[%emt 0:01:27]} 38. Nh1 {[%emt 0:00:18]} Rc5 {[%emt 0:03:11]} 39. Ng3 {[%emt 0:00:46]} Rc2 {[%emt 0:00:50]} 40. Rd2 {[%emt 0:00:00]} Rxd2 {[%emt 0:00:00]} 41. Kxd2 {[%emt 0:00:32]} Kxd6 {[%emt 0:00:58]} 42. Ke3 {[%emt 0:07:08]} Kc5 {[%emt 0:03:36]} 43. a3 {[%emt 0:00:51]} Kb5 {[%emt 0:01:33]} 44. Kd4 {[%emt 0:15:15]} a4 {[%emt 0:03:13]} 45. bxa4+ {[%emt 0:00:13]} Kxa4 {[%emt 0:00:09]} 46. Kc5 {[%emt 0:00:22]} Kxa3 {[%emt 0:04:29]} 47. Kd6 {[%emt 0:00:38]} Kb4 {[%emt 0:01:29]} 48. Ke7 {[%emt 0:00:15]} Kc4 {[%emt 0:00:45]} 49. Kxf6 {[%emt 0:00:22]} Kd4 {[%emt 0:00:11]} 50. Kg7 {[%emt 0:03:38]} f2 {[%emt 0:02:22]} 51. Kxh6 {[%emt 0:00:37]} Nf3 {[%emt 0:00:11]} 52. Kg6 {[%emt 0:02:09]} Ke5 {[%emt 0:00:24]} 0-1

[Event "WYCC 2018 G14"]
[Site "Halkidiki"]
[Date "2018.10.24"]
[Round "6"]
[White "Randrianarimanana, Alicia"]
[Black "Kong, Sydney"]
[Result "1/2-1/2"]
[ECO "A05"]
[WhiteElo "1947"]
[BlackElo "1659"]
[Annotator "NA"]
[PlyCount "169"]
[EventDate "2018.10.20"]
[EventType "swiss"]
[EventCountry "GRE"]
[SourceTitle "playchess.com"]
[Source "ChessBase"]
[SourceQuality "1"]
[TimeControl "40/5400+30:1800+30"]

1. Nf3 {[%emt 0:00:00]} Nf6 {[%emt 0:00:00]} 2. g3 {[%emt 0:00:00]} e6 {[%emt 0:00:41]} 3. Bg2 {[%emt 0:00:00]} d5 {[%emt 0:00:37]} 4. d3 {[%emt 0:00:00]} Bc5 {[%emt 0:01:41]} 5. O-O {[%emt 0:00:01]} O-O {[%emt 0:01:56]} 6. Nbd2 {[%emt 0:00:11]} Nbd7 {[%emt 0:02:53]} 7. c3 {[%emt 0:00:27]} b6 {[%emt 0:02:08] A00: Unregelmäßige Eröffnungen} 8. h3 $146 {[%emt 0:17:00]} ({Vorgänger:} 8. b4 Bd6 9. a4 c5 10. Qb3 Bb7 11. b5 Qc7 12. e3 Rac8 13. c4 e5 14. Bb2 Rfe8 15. cxd5 Bxd5 {1-0 (54) Petran,P (2320)-Kotan,L (2245) Hungary 1998}) 8... Bb7 {[%emt 0:05:23]} 9. Re1 {[%emt 0:00:24]} a5 {[%emt 0:11:41]} 10. a4 {[%emt 0:01:34]} h6 {[%emt 0:03:21]} 11. e4 {[%emt 0:23:35]} dxe4 {[%emt 0:01:44]} 12. dxe4 {[%emt 0:00:05]} Qe7 {[%emt 0:02:37]} 13. e5 {[%emt 0:00:58]} Nd5 {[%emt 0:02:27]} 14. Nf1 {[%emt 0:08:55]} Rfd8 {[%emt 0:04:42]} 15. Qc2 {[%emt 0:00:13]} Rab8 {[%emt 0:02:20]} 16. g4 {[%emt 0:00:36]} Re8 {[%emt 0:06:28]} 17. g5 {[%emt 0:03:00]} hxg5 {[%emt 0:03:52]} 18. Nxg5 $11 {[%emt 0:00:31]} g6 {[%emt 0:00:44]} 19. Ng3 {[%emt 0:03:31]} Ne3 {[%emt 0:04:22]} 20. Bxe3 {[%emt 0:01:45]} Bxe3 {[%emt 0:00:09]} 21. Nxf7 {[%emt 0:02:09]} Bxf2+ $1 {[%emt 0:00:33]} 22. Qxf2 {[%emt 0:01:52]} Qxf7 {[%emt 0:00:08]} 23. Qxf7+ {[%emt 0:10:08]} Kxf7 {[%emt 0:00:02]} 24. Rad1 {[%emt 0:00:59]} Nc5 {[%emt 0:01:54]} 25. Rf1+ {[%emt 0:07:52]} Ke7 {[%emt 0:02:13]} 26. Bxb7 {[%emt 0:01:25]} Rxb7 {[%emt 0:00:41]} 27. Rd4 {[%emt 0:00:15]} Rbb8 {[%emt 0:03:48]} 28. Rf6 {[%emt 0:00:32]} Rg8 {[%emt 0:00:52]} 29. Rg4 {[%emt 0:02:55]} g5 {[%emt 0:01:24]} 30. Rh6 {[%emt 0:00:21]} Rg7 {[%emt 0:03:35]} 31. h4 {[%emt 0:04:40]} Nd3 {[%emt 0:04:00]} 32. Rxg5 {[%emt 0:01:08]} Rbg8 {[%emt 0:00:24]} 33. Ne4 {[%emt 0:05:30]} Nxe5 {[%emt 0:04:29]} 34. Kf1 {[%emt 0:00:25]} Nf7 {[%emt 0:01:15]} 35. Rxg7 {[%emt 0:00:23]} Rxg7 {[%emt 0:00:07]} 36. Rh5 {[%emt 0:00:19]} Rg4 {[%emt 0:00:42]} 37. Ng5 {[%emt 0:00:43]} Nxg5 {[%emt 0:02:44]} 38. hxg5 {[%emt 0:00:04]} Rxa4 {[%emt 0:00:14]} 39. Rh7+ {[%emt 0:00:34]} Kd6 {[%emt 0:01:49]} 40. g6 {[%emt 0:00:00]} Rg4 {[%emt 0:00:00]} 41. g7 {[%emt 0:03:47]} c5 {[%emt 0:01:13]} 42. Kf2 {[%emt 0:00:25]} b5 {[%emt 0:00:14]} 43. Kf3 {[%emt 0:00:13]} Rg6 {[%emt 0:00:09]} 44. b3 {[%emt 0:06:58]} a4 {[%emt 0:03:07]} 45. bxa4 {[%emt 0:00:18]} bxa4 {[%emt 0:00:02]} 46. Rh4 {[%emt 0:00:07]} Rxg7 {[%emt 0:00:21]} 47. Rxa4 {[%emt 0:00:05]} Kd5 {[%emt 0:00:08]} 48. Rh4 {[%emt 0:01:22]} c4 {[%emt 0:01:22]} 49. Rh8 {[%emt 0:01:18]} Rc7 {[%emt 0:02:29]} 50. Rd8+ {[%emt 0:02:26]} Ke5 {[%emt 0:03:34]} 51. Ra8 {[%emt 0:00:43]} Rf7+ {[%emt 0:01:26]} 52. Ke3 {[%emt 0:00:07]} Rd7 {[%emt 0:00:29]} 53. Ke2 {[%emt 0:02:08]} Rd3 {[%emt 0:01:26]} 54. Rc8 {[%emt 0:07:26]} Rxc3 {[%emt 0:00:30]} 55. Kd2 {[%emt 0:00:06]} Rd3+ {[%emt 0:00:13]} 56. Kc2 {[%emt 0:01:02]} Kd4 {[%emt 0:01:03]} 57. Rd8+ {[%emt 0:00:17]} Ke4 {[%emt 0:00:12]} 58. Rc8 {[%emt 0:00:08]} Rd4 {[%emt 0:00:40]} 59. Kc3 {[%emt 0:00:37]} e5 {[%emt 0:00:40]} 60. Rh8 {[%emt 0:01:51]} Kf3 {[%emt 0:03:34]} 61. Rh3+ {[%emt 0:01:39]} Kg4 {[%emt 0:02:02]} 62. Rh1 {[%emt 0:01:38]} Rf4 {[%emt 0:01:25]} 63. Rh8 {[%emt 0:01:58]} Kf5 {[%emt 0:00:54]} 64. Rh5+ {[%emt 0:00:36]} Ke6 {[%emt 0:00:29]} 65. Rh8 {[%emt 0:00:14]} Re4 {[%emt 0:01:57]} 66. Re8+ {[%emt 0:00:20]} Kd7 {[%emt 0:01:10]} 67. Rh8 {[%emt 0:00:12]} Rg4 {[%emt 0:02:21]} 68. Ra8 {[%emt 0:00:47]} Ke6 {[%emt 0:00:56]} 69. Re8+ {[%emt 0:00:07]} Kd5 {[%emt 0:00:46]} 70. Rd8+ {[%emt 0:00:06]} Ke4 {[%emt 0:02:52]} 71. Re8 {[%emt 0:00:25]} Rg6 {[%emt 0:02:11]} 72. Rc8 {[%emt 0:02:22]} Kd5 {[%emt 0:01:12]} 73. Rd8+ {[%emt 0:00:19]} Kc5 {[%emt 0:06:17]} 74. Rc8+ {[%emt 0:00:14]} Kd6 {[%emt 0:00:48]} 75. Kxc4 {[%emt 0:00:55]} Re6 {[%emt 0:01:04]} 76. Kd3 {[%emt 0:00:13]} e4+ {[%emt 0:00:41]} 77. Ke3 {[%emt 0:00:04]} Kd5 {[%emt 0:00:32]} 78. Rd8+ {[%emt 0:00:08]} Ke5 {[%emt 0:01:06]} 79. Rh8 {[%emt 0:00:10]} Kf5 {[%emt 0:00:42]} 80. Rf8+ {[%emt 0:00:14]} Ke5 {[%emt 0:00:45]} 81. Rh8 {[%emt 0:00:13]} Kd5 {[%emt 0:00:59]} 82. Rd8+ {[%emt 0:00:08]} Kc5 {[%emt 0:00:55]} 83. Rd4 {[%emt 0:00:29]} Re5 {[%emt 0:00:09]} 84. Rxe4 {[%emt 0:00:07]} Rxe4+ {[%emt 0:00:04]} 85. Kxe4 {[%emt 0:00:03]} 1/2-1/2

[Event "WYCC 2018 G14"]
[Site "Halkidiki"]
[Date "2018.10.24"]
[Round "6"]
[White "Kuhar, Larisa"]
[Black "Eizaguerri Floris, Maria"]
[Result "0-1"]
[ECO "B46"]
[WhiteElo "1916"]
[BlackElo "1987"]
[Annotator "NA"]
[PlyCount "70"]
[EventDate "2018.10.20"]
[EventType "swiss"]
[EventCountry "GRE"]
[SourceTitle "playchess.com"]
[Source "ChessBase"]
[SourceQuality "1"]
[TimeControl "40/5400+30:1800+30"]

1. e4 {[%emt 0:00:00]} c5 {[%emt 0:00:00]} 2. Nf3 {[%emt 0:00:00]} e6 {[%emt 0:00:00]} 3. d4 {[%emt 0:00:00]} cxd4 {[%emt 0:00:00]} 4. Nxd4 {[%emt 0:00:00]} Nc6 {[%emt 0:00:00]} 5. Nc3 {[%emt 0:00:12]} a6 {[%emt 0:00:00]} 6. Be2 {[%emt 0:00:24]} Qc7 {[%emt 0:00:10]} 7. O-O {[%emt 0:00:25]} Nf6 {[%emt 0:00:04]} 8. Be3 {[%emt 0:00:15]} Bb4 {[%emt 0:00:06]} 9. Na4 {[%emt 0:01:46]} Be7 {[%emt 0:00:20]} 10. Nxc6 {[%emt 0:01:16]} bxc6 {[%emt 0:00:07]} 11. Nb6 {[%emt 0:00:15]} Rb8 {[%emt 0:00:05]} 12. Nxc8 {[%emt 0:00:12]} Qxc8 {[%emt 0:00:02]} 13. Bd4 {[%emt 0:03:25]} c5 {[%emt 0:00:09]} 14. Be5 {[%emt 0:01:50]} Rb6 {[%emt 0:00:09]} 15. b3 {[%emt 0:03:46]} Nxe4 {[%emt 0:01:14]} 16. Bxg7 {[%emt 0:03:20]} Rg8 {[%emt 0:00:09]} 17. Be5 {[%emt 0:01:09]} Bd6 {[%emt 0:01:07]} 18. Bxd6 {[%emt 0:07:53]} Rxd6 {[%emt 0:00:11]} 19. Bd3 {[%emt 0:00:34]} Qd8 {[%emt 0:17:29]} 20. Qh5 {[%emt 0:03:43]} Rd5 {[%emt 0:02:08]} 21. Qxh7 {[%emt 0:07:34]} Nf6 {[%emt 0:00:12]} 22. Qh4 {[%emt 0:06:53]} Rh5 {[%emt 0:18:19]} 23. Qf4 {[%emt 0:04:22]} Nd5 {[%emt 0:11:18]} 24. Qe4 {[%emt 0:13:11]} f5 {[%emt 0:01:43]} 25. Qf3 {[%emt 0:03:16]} Qh4 {[%emt 0:00:44]} 26. h3 {[%emt 0:02:41]} Nf4 {[%emt 0:03:53]} 27. Rfd1 {[%emt 0:20:04]} Rxg2+ {[%emt 0:14:22]} 28. Kf1 {[%emt 0:00:36]} Qg5 {[%emt 0:02:14]} 29. Ke1 {[%emt 0:05:11]} Rxh3 {[%emt 0:04:59]} 30. Qa8+ {[%emt 0:00:35]} Ke7 {[%emt 0:00:57]} 31. Bf1 {[%emt 0:01:31]} Re3+ {[%emt 0:04:07]} 32. Kd2 {[%emt 0:00:27]} Rxf2+ {[%emt 0:02:00]} 33. Kc1 {[%emt 0:00:19]} Qf6 {[%emt 0:04:01]} 34. Kb1 {[%emt 0:01:57]} Rxf1 {[%emt 0:03:01]} 35. Rxf1 {[%emt 0:00:28]} Nd3 {[%emt 0:00:14]} 0-1

[Event "WYCC 2018 G14"]
[Site "Halkidiki"]
[Date "2018.10.24"]
[Round "6"]
[White "Baiburina, Kamilla"]
[Black "Wikar, Martyna"]
[Result "1-0"]
[ECO "B50"]
[WhiteElo "1907"]
[BlackElo "2024"]
[Annotator "NA"]
[PlyCount "123"]
[EventDate "2018.10.20"]
[EventType "swiss"]
[EventCountry "GRE"]
[SourceTitle "playchess.com"]
[Source "ChessBase"]
[SourceQuality "1"]
[TimeControl "40/5400+30:1800+30"]

1. e4 {[%emt 0:00:00]} c5 {[%emt 0:00:00]} 2. Nf3 {[%emt 0:00:00]} d6 {[%emt 0:00:00]} 3. c3 {[%emt 0:00:49]} Nf6 {[%emt 0:00:00]} 4. Be2 {[%emt 0:00:06]} Nbd7 {[%emt 0:00:02]} 5. d3 {[%emt 0:00:41]} b6 {[%emt 0:00:22]} 6. O-O {[%emt 0:00:29]} Bb7 {[%emt 0:00:17]} 7. Nbd2 {[%emt 0:05:24]} e6 {[%emt 0:00:28]} 8. Re1 {[%emt 0:02:06]} Be7 {[%emt 0:00:09]} 9. Bf1 {[%emt 0:04:10]} O-O {[%emt 0:00:10]} 10. d4 {[%emt 0:00:56] B50: Sicilian: 2...d6, Miscellaneous} cxd4 {[%emt 0:00:08]} 11. cxd4 {[%emt 0:00:14]} Rc8 {[%emt 0:00:15]} 12. b3 {[%emt 0:04:01] LiveBook: 3 Games} Rc7 {[%emt 0:07:18]} 13. Bd3 {[%emt 0:03:16]} Qa8 {[%emt 0:00:55]} 14. Ba3 {[%emt 0:01:39] [#]} Qd8 $146 {[%emt 0:17:27]} ({Predecessor:} 14... Rfc8 15. Qe2 Nf8 16. Bb2 h6 17. Rab1 d5 {0-1 (89) Maiwald,J (2450)-Bischoff,K (2535) Gladenbach 1997}) 15. Qe2 {[%emt 0:02:05]} h6 {[%emt 0:03:18]} 16. Rac1 {[%emt 0:01:07]} Re8 {[%emt 0:04:59]} 17. h3 {[%emt 0:07:13]} Bf8 {[%emt 0:01:42]} 18. Bb2 {[%emt 0:04:33]} Rxc1 {[%emt 0:05:08]} 19. Rxc1 {[%emt 0:00:34]} e5 {[%emt 0:02:33]} 20. d5 {[%emt 0:06:36]} Nc5 {[%emt 0:00:55]} 21. Bb5 {[%emt 0:01:22]} Re7 {[%emt 0:05:07]} 22. b4 {[%emt 0:04:04]} Ncd7 {[%emt 0:00:40]} 23. Bc6 {[%emt 0:04:58]} Nb8 $16 {[%emt 0:03:46]} 24. Bxb7 {[%emt 0:01:13]} Rxb7 {[%emt 0:00:07]} 25. Qc4 {[%emt 0:01:44]} Qd7 {[%emt 0:12:13]} 26. Nh4 {[%emt 0:03:42]} a5 {[%emt 0:10:19]} 27. b5 {[%emt 0:03:30]} Ne8 {[%emt 0:06:01]} 28. Qc8 {[%emt 0:02:44]} g6 {[%emt 0:02:43]} 29. a4 {[%emt 0:03:58]} Be7 {[%emt 0:03:23]} 30. Nhf3 {[%emt 0:01:54]} Kf8 {[%emt 0:01:46]} 31. Ne1 {[%emt 0:06:19]} Bg5 {[%emt 0:02:42]} 32. Nef3 {[%emt 0:00:34]} Be7 {[%emt 0:00:18]} 33. Ba3 {[%emt 0:02:17]} h5 {[%emt 0:02:21]} 34. Rc2 {[%emt 0:02:46]} f6 {[%emt 0:01:01]} 35. Ne1 {[%emt 0:02:02]} Kf7 {[%emt 0:00:40]} 36. Nd3 {[%emt 0:01:24]} Kf8 {[%emt 0:02:16]} 37. f4 {[%emt 0:03:35]} Kf7 {[%emt 0:00:48]} 38. Nf3 {[%emt 0:02:26]} Qxc8 {[%emt 0:01:11]} 39. Rxc8 {[%emt 0:00:06]} Nd7 {[%emt 0:01:43]} 40. Nd2 {[%emt 0:00:00]} Rc7 {[%emt 0:00:00]} 41. Rxc7 {[%emt 0:03:35]} Nxc7 {[%emt 0:02:20]} 42. Nc4 {[%emt 0:01:22]} Ne8 {[%emt 0:00:21]} 43. g4 {[%emt 0:02:47]} h4 {[%emt 0:05:27]} 44. Kf2 {[%emt 0:02:39]} Bf8 {[%emt 0:04:10]} 45. Kf3 {[%emt 0:08:20]} Be7 {[%emt 0:03:21]} 46. Bc1 {[%emt 0:07:09]} Bd8 {[%emt 0:07:59]} 47. g5 {[%emt 0:02:02]} exf4 {[%emt 0:02:07]} 48. Bxf4 {[%emt 0:02:52]} Bc7 {[%emt 0:03:33]} 49. Kg4 {[%emt 0:02:14]} fxg5 {[%emt 0:00:27]} 50. Bxg5 {[%emt 0:00:57]} Nef6+ {[%emt 0:03:23]} 51. Kf3 {[%emt 0:00:47]} Nh7 {[%emt 0:00:48]} 52. Bxh4 {[%emt 0:00:35]} g5 {[%emt 0:00:09]} 53. Bg3 {[%emt 0:00:41]} Ke7 {[%emt 0:00:09]} 54. Ne3 {[%emt 0:02:16]} Ne5+ {[%emt 0:01:46]} 55. Nxe5 {[%emt 0:00:35]} dxe5 {[%emt 0:00:07]} 56. Nc4 {[%emt 0:02:52]} Kf6 {[%emt 0:01:19]} 57. d6 {[%emt 0:00:31]} Bd8 {[%emt 0:00:13]} 58. Nxe5 {[%emt 0:01:07]} Ke6 {[%emt 0:01:18]} 59. Nc6 {[%emt 0:00:29]} Bf6 {[%emt 0:00:55]} 60. e5 {[%emt 0:00:26]} Bg7 {[%emt 0:00:15]} 61. Nd4+ {[%emt 0:00:23]} Kd7 {[%emt 0:00:25]} 62. e6+ {[%emt 0:00:07]} 1-0

[Event "WYCC 2018 G14"]
[Site "Halkidiki"]
[Date "2018.10.24"]
[Round "6"]
[White "Nguyen, Thien Ngan"]
[Black "De Rycke, Tyani"]
[Result "1-0"]
[ECO "B40"]
[WhiteElo "1888"]
[BlackElo "1758"]
[Annotator "NA"]
[PlyCount "129"]
[EventDate "2018.10.20"]
[EventType "swiss"]
[EventCountry "GRE"]
[SourceTitle "playchess.com"]
[Source "ChessBase"]
[SourceQuality "1"]
[TimeControl "40/5400+30:1800+30"]

1. e4 {[%emt 0:00:00]} c5 {[%emt 0:00:00]} 2. Nf3 {[%emt 0:00:00]} e6 {[%emt 0:00:00]} 3. d4 {[%emt 0:00:00]} cxd4 {[%emt 0:00:00]} 4. Nxd4 {[%emt 0:00:00]} Nf6 {[%emt 0:00:00]} 5. Nc3 {[%emt 0:00:00]} Nc6 {[%emt 0:00:00]} 6. Ndb5 {[%emt 0:00:39]} Bb4 {[%emt 0:00:13]} 7. a3 {[%emt 0:01:38]} Bxc3+ {[%emt 0:00:08]} 8. Nxc3 {[%emt 0:00:14]} d5 {[%emt 0:00:35]} 9. exd5 {[%emt 0:05:18]} exd5 {[%emt 0:00:08]} 10. Bg5 {[%emt 0:00:57]} d4 {[%emt 0:00:33]} 11. Ne4 {[%emt 0:01:00]} Qa5+ {[%emt 0:00:37]} 12. Bd2 {[%emt 0:07:03]} Qe5 {[%emt 0:00:25]} 13. Bd3 {[%emt 0:04:33]} Nxe4 {[%emt 0:04:28]} 14. O-O {[%emt 0:00:48]} O-O {[%emt 0:00:21]} 15. Re1 {[%emt 0:00:59]} Nxf2 {[%emt 0:14:48]} 16. Kxf2 {[%emt 0:00:36]} Qf6+ {[%emt 0:02:48]} 17. Kg1 {[%emt 0:00:52]} Be6 {[%emt 0:08:05]} 18. Qh5 {[%emt 0:04:33]} g6 {[%emt 0:04:13]} 19. Qb5 {[%emt 0:02:08]} Rab8 {[%emt 0:04:20]} 20. Bg5 {[%emt 0:01:01]} Qg7 {[%emt 0:06:36]} 21. Bf4 {[%emt 0:01:43]} Rbc8 {[%emt 0:03:19]} 22. Qxb7 {[%emt 0:01:44]} Bd5 {[%emt 0:05:03]} 23. Re2 {[%emt 0:04:06]} Rfd8 {[%emt 0:05:39]} 24. Rae1 {[%emt 0:02:10]} h5 {[%emt 0:06:09]} 25. h4 {[%emt 0:07:36]} a5 {[%emt 0:03:51]} 26. Qb6 {[%emt 0:01:50]} Rd7 {[%emt 0:10:42]} 27. Re8+ {[%emt 0:02:57]} Rxe8 {[%emt 0:00:33]} 28. Rxe8+ {[%emt 0:00:07]} Kh7 {[%emt 0:00:03]} 29. Bb5 {[%emt 0:01:20]} Re7 {[%emt 0:06:57]} 30. Bxc6 {[%emt 0:06:20]} Rxe8 {[%emt 0:04:49]} 31. Bxe8 {[%emt 0:00:24]} Qf8 {[%emt 0:00:53]} 32. Bb5 {[%emt 0:04:39]} Qc8 {[%emt 0:01:39]} 33. Qxd4 {[%emt 0:00:55]} Qe6 {[%emt 0:01:27]} 34. Bf1 {[%emt 0:01:02]} Qc6 {[%emt 0:02:13]} 35. c4 {[%emt 0:00:44]} Be6 {[%emt 0:00:19]} 36. b4 {[%emt 0:00:10]} axb4 {[%emt 0:00:22]} 37. axb4 {[%emt 0:00:05]} Qb7 {[%emt 0:01:03]} 38. c5 {[%emt 0:00:20]} Bd7 {[%emt 0:00:17]} 39. b5 {[%emt 0:00:14]} Bxb5 {[%emt 0:00:17]} 40. Qb4 {[%emt 0:00:00]} Bc6 {[%emt 0:00:00]} 41. Qxb7 {[%emt 0:02:59]} Bxb7 {[%emt 0:00:40]} 42. Bb5 {[%emt 0:00:17]} Bc8 {[%emt 0:00:05]} 43. Be5 {[%emt 0:00:19]} Kg8 {[%emt 0:00:25]} 44. Bf6 {[%emt 0:00:10]} Kf8 {[%emt 0:00:35]} 45. Kf2 {[%emt 0:00:17]} Be6 {[%emt 0:00:25]} 46. Ke3 {[%emt 0:00:07]} Bc8 {[%emt 0:01:44]} 47. Kd4 {[%emt 0:00:07]} Kg8 {[%emt 0:00:31]} 48. Ke5 {[%emt 0:00:22]} Kh7 {[%emt 0:00:15]} 49. Kd6 {[%emt 0:00:12]} Kh6 {[%emt 0:00:38]} 50. Ke7 {[%emt 0:00:29]} g5 {[%emt 0:00:26]} 51. hxg5+ {[%emt 0:01:05]} Kh7 {[%emt 0:00:50]} 52. Kxf7 {[%emt 0:00:07]} Bf5 {[%emt 0:00:10]} 53. c6 {[%emt 0:00:44]} Bg6+ {[%emt 0:00:11]} 54. Ke7 {[%emt 0:00:08]} Bf5 {[%emt 0:00:06]} 55. c7 {[%emt 0:00:08]} Kg6 {[%emt 0:00:23]} 56. Bd7 {[%emt 0:00:08]} Bxd7 {[%emt 0:00:12]} 57. Kxd7 {[%emt 0:00:05]} h4 {[%emt 0:00:07]} 58. c8=Q {[%emt 0:00:09]} Kf5 {[%emt 0:00:08]} 59. Kd6+ {[%emt 0:00:20]} Kf4 {[%emt 0:00:09]} 60. Qc4+ {[%emt 0:00:05]} Ke3 {[%emt 0:00:12]} 61. Qxh4 {[%emt 0:00:15]} Kd3 {[%emt 0:00:06]} 62. Qf4 {[%emt 0:00:16]} Ke2 {[%emt 0:00:05]} 63. Kd5 {[%emt 0:00:10]} Ke1 {[%emt 0:00:12]} 64. Bc3+ {[%emt 0:00:20]} Ke2 {[%emt 0:00:07]} 65. Qf3# {[%emt 0:00:05]} 1-0